fUST/lending_fUST_20250827
["ID","MTS","AMOUNT","RATE_DAILY","PERIOD"]
[381517113,1756243838429,-153.0,0.000285,30]
[381517114,1756243838438,-206.2496563,0.000285,30]
[381517115,1756243838448,-153.0,0.000285,30]
[381517116,1756243838458,-153.0,0.000285,30]
[381517117,1756243838468,-255.40632993,0.00028552,2]
[381517118,1756243838477,-467.23,0.00028559,10]
[381517119,1756243838487,-389.36,0.00028559,10]
[381517120,1756243838496,-500.0,0.00028567,2]
[381517121,1756243838505,-500.0,0.00028567,2]
[381517122,1756243838515,-500.0,0.00028567,2]
[381517123,1756243838524,-500.0,0.00028567,2]
[381517124,1756243838533,-500.0,0.00028567,2]
[381517125,1756243838542,-500.0,0.00028567,2]
[381517126,1756243838552,-500.0,0.00028567,2]
[381517127,1756243838561,-500.0,0.00028567,2]
[381517128,1756243838570,-500.0,0.00028567,2]
[381517129,1756243838579,-500.0,0.00028567,2]
[381517130,1756243838588,-14289.3740962,0.00028568,2]
[381517131,1756243838597,-1258.51,0.00028568,3]
[381517132,1756243838607,-41.88222165,0.00028568,3]
[381517138,1756243840503,-151.0,0.0002799,2]
[381517139,1756243840512,-151.0,0.00028083,2]
[381517140,1756243840521,-151.0,0.00028552,2]
[381517141,1756243840531,-151.0,0.00028567,2]
[381517142,1756243840540,-151.0,0.00028567,2]
[381517143,1756243840550,-587.36777835,0.00028568,3]
[381517144,1756243840560,-314.63,0.00028568,3]
[381517145,1756243840570,-157.31,0.00028568,3]
[381517146,1756243840579,-471.96,0.00028568,3]
[381517147,1756243840591,-151.0,0.00028568,2]
[381517148,1756243840601,-114314.99277,0.00028569,2]
[381517149,1756243840611,-500.0,0.00028573,5]
[381517150,1756243840621,-264.85274484,0.00028573,5]
[381517151,1756243840631,-500.0,0.00028573,5]
[381517152,1756243840640,-4066.33620938,0.00028573,2]
[381517153,1756243840649,-155099.9692741,0.00028579,2]
[381517154,1756243841353,-57.91723267,0.00028579,2]
[381517155,1756243841528,367.36870291,0.000199,2]
[381517156,1756243841671,367.36870267,0.00021627,2]
[381517157,1756243841783,367.36870267,0.00023353,2]
[381517158,1756243842109,367.36870267,0.0002508,2]
[381517358,1756243850961,-367.36870267,0.00026806,6]
[381517359,1756243850971,-161.0922331,0.00028,30]
[381517360,1756243850980,-367.36870267,0.00028533,10]
[381517361,1756243850989,-500.0,0.00028567,2]
[381517362,1756243850999,-315.93188311,0.00028567,2]
[381517363,1756243851008,-500.0,0.00028567,2]
[381517364,1756243851017,-500.0,0.00028567,2]
[381517365,1756243851027,-500.0,0.00028567,2]
[381517366,1756243851036,-500.0,0.00028567,2]
[381517367,1756243851045,-500.0,0.00028567,2]
[381517368,1756243851054,-500.0,0.00028567,2]
[381517369,1756243851063,-151.0,0.00028569,2]
[381517370,1756243851074,-22035.86211939,0.00028579,2]
[381517372,1756244008943,393.017739,0.00013699,2]
[381517373,1756244009198,393.017739,0.00020187,2]
[381517374,1756244010634,-293.52917591,0.00026676,2]
[381517375,1756244013992,-99.48856309,0.00026676,2]
[381517376,1756244014015,-250.44690047,0.00026972,2]
[381517378,1756244022974,293.89496231,0.000199,2]
[381517379,1756244023076,293.89496213,0.00021627,2]
[381517380,1756244023187,293.89496213,0.00023353,2]
[381517381,1756244023304,293.89496213,0.0002508,2]
[381517382,1756244140939,152.95568284,0.000252,2]
[381517383,1756244201340,266.3153699,0.000199,2]
[381517384,1756244201459,266.31536964,0.00021627,2]
[381517385,1756244201577,266.31536964,0.00023353,2]
[381517386,1756244201728,266.31536964,0.0002508,2]
[381517388,1756244324561,-196.2379727,0.00026706,2]
[381517389,1756244326638,-17.39997975,0.00026706,2]
[381517390,1756244377689,469.28070243,0.000199,2]
[381517391,1756244377784,469.28070215,0.00021627,2]
[381517392,1756244377912,469.28070215,0.00023353,2]
[381517393,1756244378021,469.28070215,0.0002508,2]
[381517394,1756244434281,-170.91036196,0.00026617,2]
[381517395,1756244436516,-394.17721766,0.00026617,2]
[381517396,1756244440552,-160.11626619,0.00026617,2]
[381517397,1756244444287,-211.39331074,0.00026617,2]
[381517398,1756244446636,-168.95,0.00026617,2]
[381517399,1756244448766,-229.06,0.00026617,2]
[381517400,1756244450597,-446.70365809,0.00026617,2]
[381517401,1756244453794,-160.0,0.00026617,2]
[381517402,1756244456242,-211.32205792,0.00026397,2]
[381517403,1756244457886,-70.13939708,0.00026397,2]
[381517404,1756244457908,-241.6133702,0.00026617,2]
[381517405,1756244460884,-163.25467556,0.00026617,2]
[381517406,1756244460913,-168.96037289,0.00026624,2]
[381517407,1756244464565,-1.94998907,0.00026624,2]
[381517414,1756244553919,406.70994196,0.000199,2]
[381517415,1756244554069,406.70994186,0.00021627,2]
[381517416,1756244554437,406.70994186,0.00023353,2]
[381517417,1756244554594,406.70994186,0.0002508,2]
[381517418,1756244555039,-170.91036195,0.00026706,2]
[381517419,1756244643626,-178.83402617,0.00026706,2]
[381517420,1756244646600,-70.49201723,0.00026706,2]
[381517424,1756244728051,352.48194967,0.000199,2]
[381517425,1756244728164,352.48194961,0.00021627,2]
[381517426,1756244728448,352.48194961,0.00023353,2]
[381517427,1756244728493,352.48194961,0.0002508,2]
[381517428,1756244729110,-188.039839,0.00026257,2]
[381517429,1756244754101,-170.91036195,0.00026706,2]
[381517430,1756244754122,-196.48832494,0.00026724,2]
[381517431,1756244808082,-291.30868867,0.00026724,2]
[381517432,1756244818379,-155.53050743,0.00025778,2]
[381517433,1756244820279,-298.55881157,0.00025778,2]
[381517434,1756244820300,-195.06118843,0.00025923,2]
[381517435,1756244823301,-93.66151457,0.00025923,2]
[381517436,1756244823325,-130.59848543,0.00026044,2]
[381517437,1756244825114,-182.83916771,0.00026044,2]
[381517438,1756244825134,-32.95588254,0.00026724,2]
[381517439,1756244840146,-286.94083514,0.00026724,2]
[381517440,1756244846132,-339.79096942,0.00026724,2]
[381517441,1756244850076,-289.99137069,0.00026724,2]
[381517442,1756244850103,-352.48194961,0.00026806,6]
[381517443,1756244850124,-615.39254723,0.00026972,2]
[381517444,1756244850147,-1200.0,0.00027364,2]
[381517445,1756244850170,-300.0,0.00027365,2]
[381517446,1756244850193,-300.0,0.00027365,2]
[381517447,1756244850215,-300.0,0.00027365,2]
[381517448,1756244850237,-300.0,0.00027365,2]
[381517449,1756244850259,-1200.0,0.00027365,2]
[381517450,1756244850280,-4897.76338557,0.00027367,2]
[381517451,1756244850303,-1662.20279042,0.00027873,2]
[381517452,1756244850322,-500.0,0.0002797,2]
[381517453,1756244850343,-500.0,0.0002797,2]
[381517454,1756244850364,-500.0,0.0002797,2]
[381517455,1756244850384,-500.0,0.0002797,2]
[381517456,1756244850403,-500.0,0.0002797,2]
[381517457,1756244850424,-500.0,0.0002797,2]
[381517458,1756244850444,-500.0,0.0002797,2]
[381517459,1756244850463,-500.0,0.0002797,2]
[381517460,1756244850482,-500.0,0.0002797,2]
[381517461,1756244850501,-521.74607589,0.0002797,2]
[381517462,1756244850523,-478.20070642,0.0002797,2]
[381517463,1756244850544,-500.0,0.0002797,2]
[381517464,1756244850567,-561.97980683,0.0002797,2]
[381517465,1756244850588,-500.0,0.0002797,2]
[381517466,1756244850607,-165.48947683,0.0002797,2]
[381517467,1756244850626,-562.5,0.0002797,2]
[381517468,1756244850649,-251.6861919,0.0002797,2]
[381517469,1756244850668,-236.05962794,0.0002797,2]
[381517470,1756244850689,-500.0,0.0002797,2]
[381517471,1756244850710,-503.89669435,0.0002797,2]
[381517472,1756244850734,-500.0,0.0002797,2]
[381517473,1756244850756,-383.92491011,0.0002797,2]
[381517474,1756244850778,-212.8215,0.0002797,2]
[381517475,1756244850799,-500.0,0.0002797,2]
[381517476,1756244850827,-500.0,0.0002797,2]
[381517477,1756244850850,-500.0,0.0002797,2]
[381517478,1756244850869,-500.0,0.0002797,2]
[381517479,1756244850890,-500.0,0.0002797,2]
[381517480,1756244850911,-500.0,0.0002797,2]
[381517481,1756244850930,-500.0,0.0002797,2]
[381517482,1756244850950,-500.0,0.0002797,2]
[381517483,1756244850971,-500.0,0.0002797,2]
[381517484,1756244850992,-653.31314942,0.00027971,2]
[381517485,1756244902044,365.37157231,0.000199,2]
[381517486,1756244902144,365.37157202,0.00021627,2]
[381517487,1756244902405,365.37157202,0.00023353,2]
[381517488,1756244902519,365.37157202,0.0002508,2]
[381517489,1756244969314,371.56923,0.00013699,2]
[381517490,1756244969538,371.56923,0.00020187,2]
[381517491,1756244971275,-247.83,0.00026676,2]
[381517493,1756244974648,-123.73923,0.00026676,2]
[381517494,1756244974672,-170.48230734,0.00026706,2]
[381517495,1756244992752,5000.0,0.000252,2]
[381517591,1756245038812,-325.21779113,0.00026806,6]
[381517592,1756245038823,-40.15378089,0.00026806,6]
[381517593,1756245038833,-422.4977946,0.00027674,2]
[381517594,1756245038843,-1454.4274416,0.0002789,2]
[381517595,1756245038852,-160.0,0.00027971,2]
[381517596,1756245038862,-160.0,0.00027972,2]
[381517597,1756245038871,-523.64683333,0.00027978,2]
[381517598,1756245038881,-335.74956399,0.00027978,2]
[381517599,1756245038891,-300.0,0.00027978,2]
[381517600,1756245038900,-16620.19990799,0.00027979,2]
[381517651,1756245040998,-60.92383322,0.00027979,2]
[381517718,1756245041683,-2994.38335369,0.00027979,2]
[381517731,1756245066015,-289.44125684,0.00026568,2]
[381517732,1756245068209,-236.99719601,0.00026568,2]
[381517733,1756245070885,-65.56154715,0.00026568,2]
[381517734,1756245079918,716.20193532,0.000199,2]
[381517735,1756245080099,716.20193524,0.00021627,2]
[381517736,1756245080158,716.20193524,0.00023353,2]
[381517737,1756245080296,716.20193524,0.0002508,2]
[381517738,1756245095909,2049.06862185,0.000252,2]
[381517740,1756245111631,2950.93137815,0.000252,2]
[381517743,1756245126865,5000.0,0.000252,2]
[381517745,1756245142575,5000.0,0.000252,2]
[381517746,1756245158854,5000.0,0.000252,2]
[381517747,1756245166732,5000.0,0.000252,2]
[381517748,1756245175669,5000.0,0.000252,2]
[381517749,1756245183661,1653.12670083,0.000252,2]
[381517750,1756245191719,5000.0,0.000252,2]
[381517751,1756245207010,5000.0,0.000252,2]
[381517752,1756245222731,4793.76088202,0.000252,2]
[381517753,1756245238122,5000.0,0.000252,2]
[381517756,1756245246011,-251.47696481,0.00026325,2]
[381517757,1756245251460,-217.68111308,0.00026325,2]
[381517758,1756245253441,5000.0,0.000252,2]
[381517759,1756245253660,-122.84192211,0.00026325,2]
[381517760,1756245263437,1009.79431342,0.000199,2]
[381517761,1756245263552,1009.79431332,0.00021627,2]
[381517762,1756245263654,1009.79431332,0.00023353,2]
[381517763,1756245263785,1009.79431332,0.0002508,2]
[381517764,1756245269959,5000.0,0.000252,2]
[381517765,1756245277777,361.56773111,0.000252,2]
[381517766,1756245287240,5000.0,0.000252,2]
[381517767,1756245303794,5000.0,0.000252,2]
[381517768,1756245319599,5000.0,0.000252,2]
[381517769,1756245329596,204.0,0.00026586,120]
[381517770,1756245335330,5000.0,0.000252,2]
[381517771,1756245351392,5000.0,0.000252,2]
[381517772,1756245382421,-0.01,0.00026759,2]
[381517773,1756245382596,-0.02,0.00026759,2]
[381517774,1756245392793,-0.04,0.00026759,2]
[381517775,1756245392850,-0.08,0.00026759,2]
[381517776,1756245402412,-0.16,0.00026759,2]
[381517777,1756245402583,-0.32,0.00026759,2]
[381517778,1756245412418,-0.64,0.00026759,2]
[381517779,1756245412576,-1.28,0.00026759,2]
[381517780,1756245422426,-2.56,0.00026759,2]
[381517781,1756245422609,-300.0,0.00026758,2]
[381517782,1756245425362,-163.70522651,0.00026706,2]
[381517783,1756245428708,1281.74265737,0.00020867,2]
[381517784,1756245429675,-7.20513544,0.00026706,2]
[381517785,1756245432506,-288.0,0.00026758,2]
[381517786,1756245432738,-5.12,0.00026759,2]
[381517787,1756245433041,-823.27772662,0.00026759,2]
[381517788,1756245443650,1151.69344723,0.000199,2]
[381517789,1756245443764,1151.69344707,0.00021627,2]
[381517790,1756245443877,1151.69344707,0.00023353,2]
[381517791,1756245443994,1151.69344707,0.0002508,2]
[381517792,1756245453683,5000.0,0.000252,2]
[381517793,1756245469669,5000.0,0.000252,2]
[381517794,1756245483779,-193.53298666,0.00026706,2]
[381517795,1756245485635,5000.0,0.000252,2]
[381517796,1756245487017,-97.21333653,0.00026706,2]
[381517797,1756245487553,-300.0,0.00026758,2]
[381517798,1756245487582,-233.51772662,0.00026759,2]
[381517799,1756245487697,-1067.03545324,0.00026759,2]
[381517800,1756245488463,380.72074823,0.00027397,120]
[381517801,1756245500800,5000.0,0.000252,2]
[381517802,1756245516250,5000.0,0.000252,2]
[381517803,1756245534408,5000.0,0.000252,2]
[381517804,1756245551071,5000.0,0.000252,2]
[381517805,1756245551743,-170.91036195,0.00026706,2]
[381517806,1756245566767,5000.0,0.000252,2]
[381517807,1756245582511,5000.0,0.000252,2]
[381517808,1756245597912,5000.0,0.000252,2]
[381517809,1756245609032,-208.09612525,0.00025205,2]
[381517810,1756245613291,5000.0,0.000252,2]
[381517811,1756245628539,5000.0,0.000252,2]
[381517812,1756245631635,1228.38206308,0.000199,2]
[381517813,1756245631811,1228.3820628,0.00021627,2]
[381517814,1756245631913,1228.3820628,0.00023353,2]
[381517815,1756245632234,1228.3820628,0.0002508,2]
[381517816,1756245644397,5000.0,0.000252,2]
[381517817,1756245659813,5000.0,0.000252,2]
[381517818,1756245675951,5000.0,0.000252,2]
[381517819,1756245676852,-213.64709897,0.00026719,2]
[381517820,1756245679034,-129.44627412,0.00026719,2]
[381517821,1756245691680,5000.0,0.000252,2]
[381517822,1756245692273,-234.41295684,0.00026719,2]
[381517823,1756245692976,-4765.58704316,0.00026719,2]
[381517824,1756245693008,-123.83591368,0.00026758,2]
[381517825,1756245693145,-221.16408632,0.00026758,2]
[381517826,1756245693179,-300.0,0.00026758,2]
[381517827,1756245693209,-160.0,0.00026759,2]
[381517828,1756245693240,-771.74273384,0.00026759,2]
[381517829,1756245699379,1459.70362028,0.000252,2]
[381517830,1756245707509,5000.0,0.000252,2]
[381517831,1756245715246,-174.37610492,0.00026217,2]
[381517832,1756245719177,-50.79305908,0.00026217,2]
[381517833,1756245723262,5000.0,0.000252,2]
[381517834,1756245739279,5000.0,0.000252,2]
[381517835,1756245750314,300.31028826,0.0001,2]
[381517836,1756245763086,-261.811501,0.00026084,2]
[381517837,1756245763116,-4476.386998,0.00026492,2]
[381517838,1756245763277,-523.613002,0.00026492,2]
[381517839,1756245763306,-1858.58763632,0.00026759,2]
[381517840,1756245808647,1270.10883075,0.000199,2]
[381517841,1756245808771,1270.10883062,0.00021627,2]
[381517842,1756245808886,1270.10883062,0.00023353,2]
[381517843,1756245809006,1270.10883062,0.0002508,2]
[381517844,1756245809531,-593.20784301,0.00026492,2]
[381517845,1756245813492,-165.0,0.00026492,2]
[381517846,1756245822178,-334.15266481,0.00026492,2]
[381517847,1756245827845,-430.26932914,0.00026492,2]
[381517848,1756245829959,-168.51794038,0.00026492,2]
[381517849,1756245832245,-182.45,0.00026492,2]
[381517850,1756245835193,-156.43067086,0.00026492,2]
[381517851,1756245837870,-300.0,0.00026492,2]
[381517852,1756245840840,-324.5473304,0.00026492,2]
[381517853,1756245844438,-304.79226468,0.00026492,2]
[381517854,1756245846134,-290.73811895,0.00026492,2]
[381517855,1756245848905,-151.16803761,0.00026492,2]
[381517856,1756245855931,-152.0,0.00026492,2]
[381517857,1756245858064,-162.48083922,0.00026492,2]
[381517858,1756245872106,5000.0,0.000252,2]
[381517859,1756245873435,-393.90772254,0.0002659,2]
[381517860,1756245873464,-1575.63089018,0.0002659,2]
[381517861,1756245873495,-2519.30844116,0.0002659,2]
[381517862,1756245873683,-1022.31589224,0.0002659,2]
[381517863,1756245873714,-300.0,0.00026758,2]
[381517864,1756245873745,-160.0,0.00026759,2]
[381517865,1756245873777,-1799.76949216,0.00026759,2]
[381517866,1756245887669,5000.0,0.000252,2]
[381517867,1756245903839,5000.0,0.000252,2]
[381517868,1756245905793,410.605378,0.00013699,2]
[381517869,1756245906005,410.605378,0.00020187,2]
[381517871,1756245946988,-278.89463261,0.0002641,2]
[381517872,1756245953431,-4721.10536739,0.0002641,2]
[381517873,1756245953661,-467.95949257,0.0002659,2]
[381517874,1756245953849,-290.29058945,0.0002659,2]
[381517875,1756245953882,-3029.96732775,0.0002659,2]
[381517876,1756245953915,-410.605378,0.00026676,2]
[381517877,1756245953951,-151.0,0.00026759,2]
[381517878,1756245953983,-160.15851129,0.00026759,2]
[381517879,1756245957117,-216.92473066,0.00026759,2]
[381517880,1756245973506,-1223.2457516,0.00026155,2]
[381517881,1756245973536,-2553.5184968,0.00026492,2]
[381517882,1756245973611,-2446.4815032,0.00026492,2]
[381517883,1756245973640,-1888.13249306,0.00026759,2]
[381517884,1756245981359,5000.0,0.000252,2]
[381517885,1756245997118,5000.0,0.000252,2]
[381517886,1756246006438,1415.83490156,0.000199,2]
[381517887,1756246006545,1415.83490128,0.00021627,2]
[381517888,1756246006665,1415.83490128,0.00023353,2]
[381517889,1756246006780,1415.83490128,0.0002508,2]
[381517890,1756246012326,4336.6703946,0.000252,2]
[381517891,1756246012350,663.3296054,0.000252,2]
[381517892,1756246013908,-1330.78200748,0.00026759,2]
[381517893,1756246013948,-1415.83490128,0.00026806,6]
[381517894,1756246015408,-449.57,0.0002698,10]
[381517896,1756246027486,5000.0,0.000252,2]
[381517897,1756246033655,-518.84552426,0.0002618,2]
[381517898,1756246033687,-374.64,0.0002698,10]
[381517899,1756246033717,-300.0,0.00026989,2]
[381517900,1756246033863,-464.75471171,0.0002699,2]
[381517901,1756246034220,-650.85605347,0.0002699,2]
[381517902,1756246034247,-10000.01,0.0002699,2]
[381517903,1756246034268,-10000.01,0.0002699,2]
[381517904,1756246034302,-10000.01,0.0002699,2]
[381517905,1756246034356,-10000.01,0.0002699,2]
[381517906,1756246034417,-10000.01,0.0002699,2]
[381517907,1756246034619,-10000.01,0.0002699,2]
[381517908,1756246034790,-10000.01,0.0002699,2]
[381517909,1756246034933,-10000.01,0.0002699,2]
[381517910,1756246035061,-10000.01,0.0002699,2]
[381517911,1756246043569,5000.0,0.000252,2]
[381517912,1756246051124,-227.66817317,0.0002699,2]
[381517913,1756246058529,5000.0,0.000252,2]
[381517914,1756246073938,5000.0,0.000252,2]
[381517916,1756246089582,5000.0,0.000252,2]
[381517917,1756246093859,-5000.02,0.00026879,2]
[381517918,1756246094027,-10000.01,0.00026879,2]
[381517919,1756246103783,-4829.7851145,0.00026879,2]
[381517920,1756246103846,-340.439771,0.00026973,2]
[381517921,1756246103907,-159.560229,0.00026973,2]
[381517922,1756246103933,-502.83892234,0.00026973,2]
[381517923,1756246103964,-500.0,0.00026973,2]
[381517924,1756246103992,-300.0,0.00026989,2]
[381517925,1756246104118,-7075.21169732,0.0002699,2]
[381517926,1756246104821,5000.0,0.000252,2]
[381517927,1756246113251,5000.0,0.000252,2]
[381517928,1756246121263,5000.0,0.000252,2]
[381517929,1756246136205,921.85580974,0.000252,2]
[381517930,1756246151093,-209.89621954,0.00025205,2]
[381517931,1756246159061,62.39064076,0.000252,2]
[381517932,1756246159084,241.07221526,0.000252,2]
[381517933,1756246170065,-1581.41936433,0.0002699,2]
[381517934,1756246170086,-941.0,0.00027266,2]
[381517935,1756246170106,-160.0,0.00027357,2]
[381517936,1756246170125,-226.432,0.00027362,16]
[381517937,1756246170146,-300.0,0.00027366,2]
[381517938,1756246170166,-5000.0,0.00027367,2]
[381517939,1756246170186,-1000.0,0.00027521,5]
[381517940,1756246170207,-1611.78051494,0.00027747,2]
[381517941,1756246170226,-199.75566432,0.00027788,2]
[381517942,1756246170247,-168.039972,0.00027799,2]
[381517943,1756246170268,-500.0,0.00027799,2]
[381517944,1756246170290,-500.0,0.00027799,2]
[381517945,1756246170309,-500.0,0.00027799,2]
[381517946,1756246170329,-325.21,0.00027799,2]
[381517947,1756246170349,-500.0,0.00027799,2]
[381517948,1756246170368,-21378.42555015,0.000278,2]
[381517949,1756246170388,-200.0,0.00027847,2]
[381517950,1756246170410,-312.2,0.00027869,10]
[381517951,1756246170430,-260.17,0.00027869,10]
[381517952,1756246170449,-500.0,0.00027873,5]
[381517953,1756246170469,-500.0,0.00027873,5]
[381517954,1756246170487,-500.0,0.00027873,5]
[381517955,1756246170508,-164.74471917,0.00027873,5]
[381517956,1756246170527,-500.0,0.00027873,5]
[381517957,1756246170548,-274.87201515,0.00027878,2]
[381517958,1756246170570,-591.94818334,0.00027878,2]
[381517959,1756246170591,-591.94818334,0.00027878,2]
[381517960,1756246170611,-591.94818334,0.00027878,2]
[381517961,1756246170632,-591.94818334,0.00027878,2]
[381517962,1756246170652,-591.94818334,0.00027878,2]
[381517963,1756246170674,-591.94818334,0.00027878,2]
[381517964,1756246170697,-591.94818334,0.00027878,2]
[381517965,1756246170718,-591.94818334,0.00027878,2]
[381517966,1756246170739,-591.94818334,0.00027878,2]
[381517967,1756246170761,-591.94818334,0.00027878,2]
[381517968,1756246170782,-591.94818334,0.00027878,2]
[381517969,1756246170803,-591.94818334,0.00027878,2]
[381517970,1756246170825,-591.94818334,0.00027878,2]
[381517971,1756246170846,-591.94818334,0.00027878,2]
[381517972,1756246170868,-591.94818334,0.00027878,2]
[381517973,1756246170889,-591.94818334,0.00027878,2]
[381517974,1756246170910,-621.54559251,0.00027878,2]
[381517975,1756246170931,-621.54559251,0.00027878,2]
[381517976,1756246170952,-621.54559251,0.00027878,2]
[381517977,1756246170975,-621.54559251,0.00027878,2]
[381517978,1756246170999,-621.54559251,0.00027878,2]
[381517979,1756246171020,-621.54559251,0.00027878,2]
[381517980,1756246171041,-621.54559251,0.00027878,2]
[381517981,1756246171061,-621.54559251,0.00027878,2]
[381517982,1756246171082,-621.54559251,0.00027878,2]
[381517983,1756246171102,-621.54559251,0.00027878,2]
[381517984,1756246171123,-637.77313754,0.00027878,2]
[381517985,1756246171144,-637.77313754,0.00027878,2]
[381517986,1756246171164,-889.78,0.00027879,3]
[381517987,1756246171185,-444.89,0.00027879,3]
[381517988,1756246171205,-222.45,0.00027879,3]
[381517989,1756246171225,-667.36,0.00027879,3]
[381517990,1756246171247,-58977.57259556,0.00027879,2]
[381517991,1756246173091,-32456.81064386,0.00027879,2]
[381517992,1756246187126,2896.41649558,0.000199,2]
[381517993,1756246187238,2896.41649555,0.00021627,2]
[381517994,1756246187356,2896.41649555,0.00023353,2]
[381517995,1756246187478,1310.76051332,0.0002508,2]
[381517996,1756246187504,1585.65598223,0.0002508,2]
[381517997,1756246210097,4341.6141051,0.000252,2]
[381518157,1756246237863,-2896.41649555,0.00026806,6]
[381518159,1756246237872,-1062.27544384,0.0002774,20]
[381518161,1756246237883,-4336.16440223,0.000278,2]
[381518163,1756246237892,-343.40636136,0.00027873,5]
[381518165,1756246237901,-500.0,0.00027873,5]
[381518167,1756246237911,-500.0,0.00027873,5]
[381518169,1756246237920,-500.0,0.00027873,5]
[381518171,1756246237929,-500.0,0.00027873,5]
[381518173,1756246237938,-300.0,0.00027878,2]
[381518175,1756246237948,-88420.91194058,0.00027879,2]
[381518177,1756246237958,-370000.0,0.00027889,2]
[381518179,1756246237967,-4981.67130316,0.000279,2]
[381518181,1756246237976,-189.69645233,0.0002791,2]
[381518183,1756246237985,-204.0,0.00027916,120]
[381518185,1756246237995,-4773.0876855,0.00027919,2]
[381518187,1756246238010,-22481.9118975,0.0002797,2]
[381518189,1756246238020,-500.63181945,0.00027973,5]
[381518190,1756246238029,-501.52409919,0.00027973,5]
[381518191,1756246238038,-500.0,0.00027973,5]
[381518192,1756246238049,-501.63845286,0.00027973,5]
[381518193,1756246238058,-473.30564536,0.00027973,5]
[381518194,1756246238068,-500.0,0.00027973,5]
[381518195,1756246238079,-500.0,0.00027973,2]
[381518196,1756246238088,-500.0,0.00027973,5]
[381518198,1756246238098,-501.85733234,0.00027973,5]
[381518199,1756246238107,-501.80461637,0.00027973,5]
[381518201,1756246238116,-500.0,0.00027973,5]
[381518203,1756246238125,-587.34314269,0.00027973,5]
[381518205,1756246238134,-502.15933556,0.00027973,5]
[381518207,1756246238143,-500.0,0.00027973,5]
[381518209,1756246238153,-500.0,0.00027973,5]
[381518211,1756246238163,-500.0,0.00027973,5]
[381518213,1756246238173,-500.0,0.00027973,5]
[381518215,1756246238182,-258.89243236,0.00027973,5]
[381518217,1756246238192,-500.0,0.00027973,5]
[381518219,1756246238202,-500.0,0.00027973,5]
[381518221,1756246238211,-500.0,0.00027973,5]
[381518223,1756246238220,-500.0,0.00027973,5]
[381518225,1756246238229,-423.57915791,0.00027973,5]
[381518227,1756246238239,-500.0,0.00027973,5]
[381518229,1756246238249,-500.0,0.00027973,5]
[381518231,1756246238259,-500.0,0.00027973,5]
[381518233,1756246238269,-500.0,0.00027973,5]
[381518235,1756246238278,-500.0,0.00027973,5]
[381518237,1756246238287,-500.0,0.00027973,5]
[381518239,1756246238297,-500.0,0.00027973,5]
[381518241,1756246238307,-500.0,0.00027973,5]
[381518243,1756246238316,-500.0,0.00027973,5]
[381518245,1756246238325,-500.57562259,0.00027973,5]
[381518247,1756246238335,-500.0,0.00027973,5]
[381518249,1756246238344,-500.0,0.00027973,5]
[381518251,1756246238354,-500.0,0.00027973,5]
[381518253,1756246238363,-500.0,0.00027973,5]
[381518255,1756246238372,-500.0,0.00027973,5]
[381518257,1756246238382,-154.82107977,0.00027973,5]
[381518259,1756246238391,-500.0,0.00027973,5]
[381518261,1756246238400,-500.0,0.00027973,5]
[381518263,1756246238410,-179.33548377,0.00027973,2]
[381518265,1756246238419,-151.11437487,0.00027973,2]
[381518267,1756246238428,-1000.0,0.00027989,2]
[381518269,1756246238438,-1000.0,0.00027989,2]
[381518271,1756246238448,-1000.0,0.00027989,2]
[381518273,1756246238459,-1000.0,0.00027989,2]
[381518275,1756246238468,-1000.0,0.00027989,2]